[Event "Women Accentus DAQ Blitz 2022"]
[Site "Biel"]
[Date "2022.07.17"]
[Round "2.2"]
[White "Ciarletta, Iris"]
[Black "Sumarriva Paulin, Laura"]
[Result "1/2-1/2"]
[ECO "D24"]
[WhiteElo "1717"]
[BlackElo "1913"]
[Annotator "TA"]
[PlyCount "242"]
[EventDate "2022.07.17"]
[EventType "tourn"]
[EventCountry "SUI"]
[SourceTitle "playchess.com"]
[Source "ChessBase"]
[SourceQuality "1"]
[TimeControl "180+2"]

{[%evp 10,242,26,-13,76,47,132,134,150,105,105,106,95,68,86,26,45,40,62,-40,-7,-147,-139,-142,-104,-97,-82,-116,-50,-81,-84,-84,-80,-79,-68,-89,-87,-87,-87,-96,-83,-95,-93,-151,-102,-232,-179,-180,-173,-227,-201,-189,-197,-191,-148,-143,-144,-150,-113,-177,-132,-289,-155,-145,-170,-140,-119,-121,-113,-120,-89,-83,-89,-135,-137,-183,-182,-200,-87,-89,-89,-89,-61,-100,-65,-68,-36,-96,0,-195,-95,-263,-255,-254,-206,-284,-162,-150,-45,-190,-172,-150,-160,-191,-191,-191,0,-205,-144,-190,-190,-252,-198,-191,-190,-190,-183,-165,0,0,0,0,0,0,0,-83,-83,-83,-83,-99,-54,-80,0,-99,-81,-83,-83,-145,-54,-318,-73,-360,-335,-327,-35,-35,-35,-35,0,-35,0,-35,-35,-35,0,-35,0,-35,-11,-298,-269,-298,-269,-262,-220,-158,-150,-150,0,-198,-125,-125,-7,-7,0,-7,-7,-7,-7,-7,-7,-7,0,-8,-8,-8,-8,-8,-8,-8,-8,-8,-8,-8,-8,-8,-8,-8,-8,-8,0,0,0,0,0,0,0,0,0,0,0,0,0,0,0,0,0,0,0,0,0,0,0,0,0,0,0,0,0,0,0,0,0,0,0]} 1. d4 {[%emt 0:00:02]} d5 {[%emt 0:00:01]} 2. c4 {[%emt 0:00:01]} e6 {[%emt 0:00:02]} 3. Nf3 {[%emt 0:00:01]} Nf6 {[%emt 0:00:01]} 4. Nc3 {[%emt 0:00:02]} dxc4 {[%emt 0:00:02]} 5. e4 {[%emt 0:00:02][%cal Be2e4,Be4e5][%mdl 32]} Bb4 {[%emt 0:00:02]} 6. Qc2 {[%emt 0:00:06]} O-O {[%emt 0:00:03] D24: Queen's Gambit Accepted: 3 Nf3 Nf6 4 Nc3.} (6... b5 $1 $11) 7. Bxc4 {[%emt 0:00:02]} (7. e5 $5 {[%cal Re5f6]} Nd5 8. Bxc4 $14) 7... a6 {[%emt 0:00:03]} (7... Nc6 $14) 8. O-O $16 {[%emt 0:00:03]} b5 {[%emt 0:00:02] [#] White is clearly better.} 9. Be2 $146 {[%emt 0:00:03]} ({Predecessor:} 9. Bd3 e5 10. dxe5 Ng4 11. h3 Nxe5 12. Nxe5 Bxh3 13. gxh3 Qh4 14. Qe2 {1-0 (16) Batard,D (2019)-Crahan,G (1770) France 2005}) 9... Bb7 {[%emt 0:00:01]} 10. e5 {[%emt 0:00:03]} Nd5 {[%emt 0:00:03]} 11. Ne4 {[%emt 0:00:04]} (11. Ng5 {with more complications.} g6 12. Nce4 Kg7 13. Nf3) 11... Nd7 {[%emt 0:00:05]} 12. Bd2 {[%emt 0:00:09]} (12. Neg5 $16 {[%csl Gg5][%cal Rc2h7]} g6 13. a3) 12... Be7 {[%emt 0:00:07]} 13. Rfc1 {[%emt 0:00:06]} Rc8 {[%emt 0:00:01]} 14. Qd1 {[%emt 0:00:07] White is more active.} ({Reject} 14. Neg5 g6 $11) (14. Nfg5 $14) 14... c5 $15 {[%emt 0:00:04]} 15. Bc3 {[%emt 0:00:10]} (15. a4 $11) 15... Nxc3 $17 {[%emt 0:00:23]} 16. Nxc3 {[%emt 0:00:06]} Nb6 {[%emt 0:00:08]} 17. dxc5 {[%emt 0:00:05]} Bxc5 {[%emt 0:00:03]} 18. a3 {[%emt 0:00:06]} Nd5 {[%emt 0:00:11]} (18... Nd7 $17 {[%cal Od8b6]} 19. Rc2 Qe7) 19. Nxd5 {[%emt 0:00:04]} Bxd5 {[%emt 0:00:02]} 20. b4 {[%emt 0:00:02]} Ba7 {[%emt 0:00:06]} 21. Rxc8 {[%emt 0:00:03]} Qxc8 {[%emt 0:00:02]} 22. Rc1 {[%emt 0:00:02] Inhibits Qc3.} Qb7 {[%emt 0:00:02]} 23. h3 {[%emt 0:00:21]} h6 {[%emt 0:00:01]} 24. Rc3 {[%emt 0:00:08]} Qb6 {[%emt 0:00:08]} 25. Qf1 {[%emt 0:00:06]} Rd8 {[%emt 0:00:17]} 26. g3 {[%emt 0:00:18]} (26. Qe1 $142) 26... Qb7 {[%emt 0:00:07]} (26... Qb8 $142 {Threatens to win with ...f6.} 27. Qb1 Rf8) 27. Kg2 {[%emt 0:00:19]} (27. Qc1 $17) 27... Bd4 {[%emt 0:00:04]} 28. Rd3 {[%emt 0:00:05]} Bxe5 {[%emt 0:00:03]} 29. Qd1 {[%emt 0:00:08]} (29. Kg1 $142 Bb2 30. Qb1) 29... Bf6 {[%emt 0:00:08]} 30. Kg1 {[%emt 0:00:11]} Rc8 {[%emt 0:00:05]} 31. Ne1 {[%emt 0:00:06]} Bc4 {[%emt 0:00:15] A strong pair of Bishops.} 32. Bf3 {[%emt 0:00:03]} Qc7 {[%emt 0:00:08]} 33. Rd7 {[%emt 0:00:02]} Qe5 {[%emt 0:00:03]} 34. Bb7 {[%emt 0:00:09]} (34. Ng2 $17 {is a better defense.}) 34... Rf8 {[%emt 0:00:02]} 35. Bxa6 $2 {[%emt 0:00:03]} (35. Qc1 $17) 35... Qb2 {[%emt 0:00:23]} (35... Ra8 $19 36. Nf3 Qb2) 36. Bb7 {[%emt 0:00:12]} Qxa3 {[%emt 0:00:03]} 37. Nc2 {[%emt 0:00:02]} Qc3 {[%emt 0:00:04]} 38. Be4 {[%emt 0:00:04]} Bb3 {[%emt 0:00:06]} 39. Qd3 {[%emt 0:00:04]} Qb2 {[%emt 0:00:12]} 40. Ne3 {[%emt 0:00:05]} Ba4 {[%emt 0:00:13]} 41. Qb1 {[%emt 0:00:02]} (41. Bh7+ $142 Kh8 42. Qd6 Qc1+ 43. Kg2) 41... Qc3 {[%emt 0:00:03]} 42. Rd3 {[%emt 0:00:04]} (42. h4 $17) 42... Qc7 $19 {[%emt 0:00:03]} 43. Rd2 {[%emt 0:00:06]} Qe5 {[%emt 0:00:02]} (43... Be7 $19 {has better winning chances. And now ...Qc3 would win.} 44. Bh7+ Kh8) 44. Ng4 $17 {[%emt 0:00:03]} Qc3 {[%emt 0:00:04]} 45. Nxf6+ {[%emt 0:00:01]} Qxf6 {[%emt 0:00:03]} 46. Rd6 {[%emt 0:00:02]} Qe5 {[%emt 0:00:03]} 47. Rc6 {[%emt 0:00:02]} Rd8 {[%emt 0:00:02]} 48. Rc1 {[%emt 0:00:05]} (48. Qd3 $15 Qf6 49. Rd6) 48... g6 {[%emt 0:00:07]} (48... f5 $17 49. Bd3 Rd4 50. Rc8+ Kf7) 49. Re1 {[%emt 0:00:04] [#]} (49. Bxg6 $1 $11 fxg6 50. Qxg6+ Qg7 51. Qxe6+ Kh8 52. Qb6) 49... Qf6 {[%emt 0:00:02]} (49... Rd2 $1 $19 50. Qc1 Qd4) 50. Bg2 $2 {[%emt 0:00:05]} (50. Bd3 $17 {keeps fighting.}) 50... Rd2 $19 {[%emt 0:00:05]} 51. Rf1 {[%emt 0:00:01]} Bc2 {[%emt 0:00:03]} 52. Qe1 {[%emt 0:00:02]} Rd8 {[%emt 0:00:02]} (52... Qd4 $142 53. Qe3 Qxb4) 53. Qc1 {[%emt 0:00:03]} Bb3 {[%emt 0:00:01]} ({Black should play} 53... Qc3 $17 {Strongly threatening ...Rd4.} 54. Be4 Rd2) 54. Be4 {[%emt 0:00:01]} (54. Qxh6 $15 Bc4 55. Rb1) 54... Bc4 {[%emt 0:00:01]} 55. Re1 {[%emt 0:00:02]} Kg7 {[%emt 0:00:02]} 56. Qe3 {[%emt 0:00:02]} Rd7 {[%emt 0:00:05]} 57. Rc1 {[%emt 0:00:01]} Rd8 $2 {[%emt 0:00:02]} (57... Qd4 $19 {White must now prevent ...Qxe3.} 58. Qe1 Qd2 59. Qxd2 Rxd2) 58. Bg2 $2 {[%emt 0:00:01]} (58. Re1 $1 $11) 58... Rd4 {[%emt 0:00:02]} 59. h4 {[%emt 0:00:02]} (59. Qe1 $17) 59... Rd3 {[%emt 0:00:02]} 60. Qe4 {[%emt 0:00:03]} (60. Qc5 $142) 60... Rd2 {[%emt 0:00:01]} 61. Qe3 {[%emt 0:00:01]} Rb2 {[%emt 0:00:02]} 62. Qc5 {[%emt 0:00:06]} Re2 {[%emt 0:00:04]} 63. Bf1 {[%emt 0:00:02]} Rb2 $2 {[%emt 0:00:02]} (63... Re5 $19 64. Qc7 Bxf1 65. Rxf1 Rf5) 64. Bxc4 $11 {[%emt 0:00:01]} bxc4 {[%emt 0:00:02]} 65. Rxc4 {[%emt 0:00:02][%mdl 4096] Endgame KQR-KQR} Rb1+ {[%emt 0:00:03]} 66. Rc1 {[%emt 0:00:01]} Rb2 {[%emt 0:00:01]} 67. Qc3 {[%emt 0:00:02]} (67. b5 $11) 67... Qxc3 $17 {[%emt 0:00:02]} 68. Rxc3 {[%emt 0:00:00]} Rxb4 {[%emt 0:00:01] KR-KR} 69. Kg2 {[%emt 0:00:01]} Rb2 {[%emt 0:00:01]} 70. Kf3 {[%emt 0:00:02]} Rb4 {[%emt 0:00:01]} (70... h5 $17) 71. Ke3 {[%emt 0:00:01]} (71. Kg2 $1 $11 {keeps the balance.}) 71... Kf6 {[%emt 0:00:01]} 72. f3 {[%emt 0:00:01]} Ra4 {[%emt 0:00:02]} 73. g4 {[%emt 0:00:01]} (73. Rb3 $142) 73... Rb4 {[%emt 0:00:04]} ({Black should try} 73... h5 $17 74. gxh5 gxh5) 74. f4 $2 {[%emt 0:00:02][%mdl 8192] [#]} (74. Rc5 $15) 74... Ra4 $2 {[%emt 0:00:02]} (74... g5 $1 $19 {is more deadly.} 75. hxg5+ hxg5 76. fxg5+ Kxg5) 75. g5+ $2 {[%emt 0:00:02][%mdl 8192]} (75. Kf3 $17 {was the only chance.}) 75... hxg5 $19 {[%emt 0:00:01]} 76. hxg5+ {[%emt 0:00:01]} Kg7 $2 {[%emt 0:00:04]} (76... Kf5 $19 77. Rc7 Re4+ 78. Kd3 Rxf4 79. Rxf7+ Kxg5) 77. Kf3 {[%emt 0:00:02]} Rb4 {[%emt 0:00:04]} 78. Rc7 {[%emt 0:00:03]} Ra4 {[%emt 0:00:01]} 79. Ke3 {[%emt 0:00:02]} Rb4 {[%emt 0:00:02]} 80. Rd7 {[%emt 0:00:01]} Rc4 {[%emt 0:00:02]} 81. Rd6 {[%emt 0:00:04]} Rb4 {[%emt 0:00:03]} 82. Kf3 {[%emt 0:00:03]} Rc4 {[%emt 0:00:04]} 83. Kg4 {[%emt 0:00:03]} e5 {[%emt 0:00:03] Hoping for ...Kf8.} 84. Kg3 $2 {[%emt 0:00:03][%mdl 8192]} (84. Rf6 $11) 84... Rxf4 {[%emt 0:00:01]} 85. Rd3 {[%emt 0:00:06]} Rf5 {[%emt 0:00:01]} 86. Kg4 {[%emt 0:00:01]} Kf8 {[%emt 0:00:02]} 87. Rd7 {[%emt 0:00:04]} Ke8 {[%emt 0:00:02]} 88. Ra7 {[%emt 0:00:01]} Kf8 {[%emt 0:00:04]} (88... Rf4+ $17 89. Kg3 Kd8) 89. Ra5 $2 {[%emt 0:00:03]} (89. Rd7 $1 $11 {and White stays safe.}) 89... f6 {[%emt 0:00:01]} ({Better is} 89... Ke7 $19 90. Ra6 Rf4+ 91. Kg3 Kd7) 90. gxf6 {[%emt 0:00:01][%mdl 64] Remove Defender} Rxf6 {[%emt 0:00:02]} (90... Kf7 $17 91. Ra7+ Kxf6 92. Ra6+ Kg7 93. Ra7+ Rf7) 91. Rxe5 $11 {[%emt 0:00:01] The position is equal.} Kg7 {[%emt 0:00:01]} 92. Re7+ {[%emt 0:00:01]} Kh6 {[%emt 0:00:02]} 93. Re8 $1 {[%emt 0:00:03]} Ra6 {[%emt 0:00:04]} 94. Re7 {[%emt 0:00:03]} Ra4+ {[%emt 0:00:01]} 95. Kg3 {[%emt 0:00:01]} Kh5 {[%emt 0:00:02]} 96. Rh7+ {[%emt 0:00:02]} Kg5 {[%emt 0:00:01]} 97. Rb7 {[%emt 0:00:01]} Ra3+ {[%emt 0:00:01]} 98. Kg2 {[%emt 0:00:01]} Kh5 {[%emt 0:00:02]} 99. Rh7+ {[%emt 0:00:01]} Kg4 {[%emt 0:00:01]} 100. Rb7 {[%emt 0:00:05]} Ra2+ {[%emt 0:00:01]} 101. Kg1 {[%emt 0:00:01]} g5 {[%emt 0:00:01][%cal Bg6g5,Bg5g4,Bg4g3][%mdl 32]} 102. Rb3 {[%emt 0:00:02]} Kh4 {[%emt 0:00:02]} 103. Kh1 {[%emt 0:00:03]} g4 {[%emt 0:00:01]} 104. Kg1 {[%emt 0:00:03]} g3 {[%emt 0:00:01]} 105. Rb8 {[%emt 0:00:02]} Ra1+ {[%emt 0:00:08]} 106. Kg2 {[%emt 0:00:01]} Ra2+ {[%emt 0:00:01]} 107. Kg1 {[%emt 0:00:01]} Ra5 {[%emt 0:00:04]} 108. Rh8+ {[%emt 0:00:02]} Kg4 {[%emt 0:00:02]} 109. Rg8+ {[%emt 0:00:01]} Kf3 {[%emt 0:00:01][%cal Ra5a1]} (109... Kh3 $5 110. Rh8+ Kg4 $11) 110. Rf8+ {[%emt 0:00:01]} Kg4 {[%emt 0:00:02]} 111. Rg8+ {[%emt 0:00:01]} Rg5 {[%emt 0:00:02]} (111... Kf3 $5 112. Rf8+ Ke3 $11) 112. Rf8 {[%emt 0:00:02]} Kh3 {[%emt 0:00:03]} 113. Rh8+ {[%emt 0:00:01]} Kg4 {[%emt 0:00:02]} 114. Kg2 {[%emt 0:00:02]} Rg7 {[%emt 0:00:02]} 115. Rf8 {[%emt 0:00:02]} Kh4 {[%emt 0:00:03]} 116. Rf4+ {[%emt 0:00:02]} Kg5 {[%emt 0:00:03]} 117. Rf3 {[%emt 0:00:01]} Kh4 {[%emt 0:00:01]} 118. Rf4+ {[%emt 0:00:01]} Rg4 {[%emt 0:00:02]} 119. Rf8 {[%emt 0:00:01]} Rg6 {[%emt 0:00:02]} 120. Rf4+ {[%emt 0:00:03]} Rg4 {[%emt 0:00:01]} 121. Rf8 {[%emt 0:00:01]} Rg6 {[%emt 0:00:01] And White is the lucky defender.  Weighted Error Value: White=0.48/Black=0.36} 1/2-1/2

[Event "Women Accentus DAQ Blitz 2022"]
[Site "Biel"]
[Date "2022.07.17"]
[Round "2.3"]
[White "Tamrazyan, Gohar"]
[Black "Keymer, Cecilia"]
[Result "1-0"]
[ECO "D00"]
[WhiteElo "1916"]
[BlackElo "1652"]
[Annotator "TA"]
[PlyCount "45"]
[EventDate "2022.07.17"]
[EventType "tourn"]
[EventCountry "SUI"]
[SourceTitle "playchess.com"]
[Source "ChessBase"]
[SourceQuality "1"]
[TimeControl "180+2"]

{[%evp 9,45,0,18,15,12,1,5,0,14,0,17,9,1,4,27,31,21,4,61,-43,0,0,32,27,36,-9,50,0,71,68,135,8,143,132,716,702,2619,2523]} 1. d4 {[%emt 0:00:01]} d5 {[%emt 0:00:00]} 2. Nc3 {[%emt 0:00:01]} Nf6 {[%emt 0:00:01]} 3. Bf4 {[%emt 0:00:02]} Bf5 {[%emt 0:00:01]} 4. e3 {[%emt 0:00:01]} e6 {[%emt 0:00:05]} 5. Bd3 {[%emt 0:00:01]} Bxd3 {[%emt 0:00:04]} 6. cxd3 {[%emt 0:00:01] D00: 1 d4 d5: Unusual lines.} Bd6 {[%emt 0:00:00]} 7. Nge2 {[%emt 0:00:04]} Nc6 {[%emt 0:00:05]} 8. O-O {[%emt 0:00:05] The position is equal.} O-O {[%emt 0:00:03] [#]} 9. a3 $146 {[%emt 0:00:09]} ({Predecessor:} 9. Bxd6 Qxd6 10. f4 Rfd8 11. Rc1 a6 12. a3 Ne7 13. b4 Nf5 14. Rf3 a5 15. Qb3 axb4 16. axb4 {½-½ (57) Taalaibekov,T (2223)-Van den Heever,D (2247) Baku 2016}) 9... a6 {[%emt 0:00:00]} 10. Rc1 {[%emt 0:00:01]} Bxf4 {[%emt 0:00:03]} 11. Nxf4 {[%emt 0:00:01]} e5 {[%emt 0:00:05]} 12. dxe5 {[%emt 0:00:04]} Nxe5 {[%emt 0:00:01]} 13. Qb3 {[%emt 0:00:22][%csl LRb7,LRd5][%cal Rc3d5]} c6 {[%emt 0:00:19]} (13... d4 $11 14. exd4 Qxd4) 14. e4 {[%emt 0:00:14]} (14. Qxb7 $14 Qd6 15. d4) 14... d4 {[%emt 0:00:06]} 15. Nce2 {[%emt 0:00:02]} Qd7 {[%emt 0:00:05]} 16. Qb4 {[%emt 0:00:05]} Rad8 {[%emt 0:00:04]} 17. Rfd1 {[%emt 0:00:11]} Qd6 {[%emt 0:00:14]} (17... Qg4 $11 18. Qxb7 g5) 18. Qxb7 {[%emt 0:00:12]} ({Better is} 18. Qxd6 $14 Rxd6 19. Ng3) 18... Rb8 {[%emt 0:00:07]} (18... g5 $11) 19. Qa7 $16 {[%emt 0:00:11]} ({Reject} 19. Qxa6 Rxb2 20. Rb1 Ra2 $11) 19... Rxb2 {[%emt 0:00:08]} (19... g5 $1 $14) 20. Nxd4 {[%emt 0:00:06]} (20. Qxd4 $16 Qb8 21. Qe3) 20... Ned7 {[%emt 0:00:28] [#]} (20... Neg4 $11 {keeps the balance.} 21. g3 Nxf2 22. Rxc6 Qxa3) 21. g3 $1 {[%emt 0:00:20] White is more active.} Nc5 $2 {[%emt 0:00:01][%mdl 8192]} (21... c5 $16 22. Nf5 Qb6 23. Ne7+ Kh8 24. Qxb6 Rxb6) 22. Qxc5 {[%emt 0:00:02]} Rc8 {[%emt 0:00:04]} 23. Qxd6 {[%emt 0:00:01] Weighted Error Value: White=0.33/Black=0.46} 1-0

[Event "Women Accentus DAQ Blitz 2022"]
[Site "Biel"]
[Date "2022.07.17"]
[Round "3.1"]
[White "Avilova, Yulia"]
[Black "Cornileau, Juliette"]
[Result "1/2-1/2"]
[ECO "A30"]
[WhiteElo "1646"]
[BlackElo "1900"]
[Annotator "TA"]
[PlyCount "88"]
[EventDate "2022.07.17"]
[EventType "tourn"]
[EventCountry "SUI"]
[SourceTitle "playchess.com"]
[Source "ChessBase"]
[SourceQuality "1"]
[TimeControl "180+2"]

{[%evp 9,88,-39,19,0,0,0,0,0,0,-65,-32,-50,-60,-52,-34,-81,-33,-82,-70,-657,-129,-137,-85,-90,-89,-76,-47,-55,-37,-34,-20,-24,-24,-20,-25,-136,-137,-139,-147,-138,-108,-316,-218,-228,-47,-42,-58,-53,-17,-50,-52,-52,0,0,0,-25,-8,-417,-273,-268,-273,-346,-342,-402,-254,-250,-241,-195,0,-313,-256,-260,-262,-260,-254,-293,-293,-263,0,-217,0]} 1. Nf3 {[%emt 0:00:02]} Nf6 {[%emt 0:00:01]} 2. c4 {[%emt 0:00:01]} c5 {[%emt 0:00:04]} 3. e3 {[%emt 0:00:01][%cal Be2e3,Be3e4,Be4e5][%mdl 32]} d5 {[%emt 0:00:07]} 4. cxd5 {[%emt 0:00:02]} Nxd5 {[%emt 0:00:02] [#]} 5. e4 $146 {[%emt 0:00:03]} ({Predecessor:} 5. Nc3 Nc6 6. d4 e6 7. Bd3 Be7 8. O-O O-O 9. Qe2 b6 10. Nxd5 exd5 11. dxc5 bxc5 12. Rd1 Be6 13. b3 Bf6 14. Bb2 Nb4 15. Ne1 Qe7 16. Rac1 Rac8 {1-0 (52) Nakamura,H (2736)-Mamedyarov,S (2762) chess24.com INT 2021}) 5... Nf6 {[%emt 0:00:06]} (5... Nb4 $1 $15) 6. e5 {[%emt 0:00:02] A30: Symmetrical English: Double Fianchetto and Hedgehog.} Nd5 {[%emt 0:00:01]} 7. Nc3 {[%emt 0:00:01]} Nc6 {[%emt 0:00:07]} 8. Bc4 {[%emt 0:00:02] The position is equal.} e6 {[%emt 0:00:34]} 9. Qb3 {[%emt 0:00:09]} (9. O-O $11) 9... Nb6 {[%emt 0:00:06]} 10. Bb5 {[%emt 0:00:02]} Bd7 {[%emt 0:00:15][%cal Oc5c4]} 11. O-O {[%emt 0:00:15][%cal Od2d4]} Be7 {[%emt 0:00:02][%cal Oc5c4]} (11... c4 $5 {[%cal Rc4b3]} 12. Qd1 (12. Bxc4 $2 Na5 $19) 12... a6 13. Bxc6 Bxc6 $15) 12. Rd1 {[%emt 0:00:10]} (12. d4 $15) 12... O-O {[%emt 0:00:13]} (12... c4 $17 13. Qc2 (13. Bxc4 $2 Na5 $19) 13... Nb4) 13. Bxc6 {[%emt 0:00:09]} (13. d4 $15) 13... Bxc6 $17 {[%emt 0:00:01]} 14. Ne2 $2 {[%emt 0:00:07][%mdl 8192] [#]} (14. d4 $15) 14... c4 $2 {[%emt 0:00:04]} (14... Ba4 $19 {has better winning chances.} 15. Qe3 Bxd1) 15. Qc3 {[%emt 0:00:07]} Qd3 {[%emt 0:00:26]} (15... Rc8 $142 {...Nd5 is the strong threat.} 16. d4 Nd5) 16. Qxd3 {[%emt 0:00:26]} cxd3 {[%emt 0:00:01]} 17. Ned4 {[%emt 0:00:02]} Bxf3 {[%emt 0:00:12]} 18. Nxf3 {[%emt 0:00:01]} Rac8 {[%emt 0:00:22]} 19. b3 {[%emt 0:00:01]} f6 $36 {[%emt 0:00:24][%mdl 2048] White is under pressure.} 20. Bb2 {[%emt 0:00:07]} Rc2 {[%emt 0:00:07]} 21. Bc3 {[%emt 0:00:01]} Nd5 {[%emt 0:00:06]} 22. Nd4 {[%emt 0:00:22]} (22. exf6 $11 gxf6 23. Ne1) 22... Nxc3 {[%emt 0:00:02]} ({But not} 22... fxe5 23. Nxc2 dxc2 24. Rdc1 $16) 23. dxc3 {[%emt 0:00:01]} Rxc3 {[%emt 0:00:04]} (23... fxe5 $2 24. Nxc2 dxc2 25. Rdc1 $18) 24. Nxe6 {[%emt 0:00:02]} Rfc8 {[%emt 0:00:05]} 25. f4 {[%emt 0:00:14]} (25. Nf4 $17 {was necessary.} Rd8 26. exf6 Bxf6 27. Rd2) 25... fxe5 {[%emt 0:00:07]} 26. fxe5 {[%emt 0:00:01]} Bc5+ $2 {[%emt 0:00:07]} (26... Kf7 $19 27. Nf4 Rd8) 27. Nxc5 $15 {[%emt 0:00:01]} R8xc5 {[%emt 0:00:01][%mdl 4096] Endgame KRR-KRR} 28. e6 {[%emt 0:00:02]} Re5 {[%emt 0:00:01]} 29. Rd2 {[%emt 0:00:03]} Rxe6 {[%emt 0:00:04]} 30. Rad1 {[%emt 0:00:01]} Re3 {[%emt 0:00:05]} ({Black should play} 30... Rd6 $15) 31. Kf2 $11 {[%emt 0:00:03]} Re2+ {[%emt 0:00:02]} 32. Kf1 {[%emt 0:00:10]} Rc2 {[%emt 0:00:02]} 33. Rxd3 {[%emt 0:00:23][%mdl 8192]} (33. Rxc2 $11 Rxc2 34. Rxd3) 33... Rxg2 {[%emt 0:00:02]} 34. Rd8+ {[%emt 0:00:03]} Kf7 {[%emt 0:00:01]} 35. R1d7+ {[%emt 0:00:02]} Kg6 {[%emt 0:00:01]} 36. Rd6+ {[%emt 0:00:02]} Kf5 {[%emt 0:00:01]} 37. Rd5+ {[%emt 0:00:01]} Ke4 {[%emt 0:00:01]} 38. Rd4+ {[%emt 0:00:02]} Kf5 $2 {[%emt 0:00:01]} (38... Ke5 $19 39. R4d5+ Ke4 40. Rd4+ Kf5 41. R4d5+ Kg4) 39. R8d5+ $2 {[%emt 0:00:01][%mdl 8192]} (39. R4d5+ $1 $11 {and White has nothing to worry.} Kg4 40. R8d7) 39... Ke6 {[%emt 0:00:01] aiming for ...Rcf2+.} 40. Rd6+ {[%emt 0:00:01]} Ke5 {[%emt 0:00:02]} 41. R6d5+ {[%emt 0:00:01]} Kf6 {[%emt 0:00:06]} 42. Rd6+ {[%emt 0:00:02]} Kg5 {[%emt 0:00:02]} 43. R6d5+ {[%emt 0:00:01]} Kf6 {[%emt 0:00:01] White must now prevent ...Rcf2+.} 44. Rd6+ {[%emt 0:00:01] [#]} Ke5 $2 {[%emt 0:00:06] Weighted Error Value: White=0.70/Black=0.63} (44... Kf7 $1 $19 45. Rd7+ Kg6) 1/2-1/2

[Event "Women Accentus DAQ Blitz 2022"]
[Site "Biel"]
[Date "2022.07.17"]
[Round "3.3"]
[White "Sumarriva Paulin, Laura"]
[Black "Tamrazyan, Gohar"]
[Result "0-1"]
[ECO "D40"]
[WhiteElo "1913"]
[BlackElo "1916"]
[Annotator "TA"]
[PlyCount "92"]
[EventDate "2022.07.17"]
[EventType "tourn"]
[EventCountry "SUI"]
[SourceTitle "playchess.com"]
[Source "ChessBase"]
[SourceQuality "1"]
[TimeControl "180+2"]

{[%evp 14,92,27,20,34,20,32,12,27,35,37,42,46,39,53,40,49,51,54,47,49,42,58,51,75,71,78,58,54,58,316,53,130,59,60,65,55,36,97,33,58,35,70,30,39,-154,-154,-148,-138,-131,0,-11,24,0,0,-8,0,-83,-87,-87,-75,-98,0,0,0,-91,-98,-101,-100,-222,-222,-212,-181,-229,-227,-265,-88,-298,-217,-29994,-29995]} 1. d4 {[%emt 0:00:02]} d5 {[%emt 0:00:01]} 2. c4 {[%emt 0:00:01]} e6 {[%emt 0:00:00]} 3. Nc3 {[%emt 0:00:01]} c5 {[%emt 0:00:01]} 4. e3 {[%emt 0:00:02]} Nc6 {[%emt 0:00:01]} 5. Nf3 {[%emt 0:00:02]} Nf6 {[%emt 0:00:01]} 6. a3 {[%emt 0:00:01]} Be7 {[%emt 0:00:03]} 7. dxc5 {[%emt 0:00:02]} Bxc5 {[%emt 0:00:02]} 8. b4 {[%emt 0:00:03]} Be7 {[%emt 0:00:08] D40: Queen's Gambit Declined: Semi-Tarrasch with 5 e3.} 9. Be2 {[%emt 0:00:03]} O-O {[%emt 0:00:15]} 10. O-O {[%emt 0:00:03]} a6 {[%emt 0:00:04] The position is equal.} 11. cxd5 {[%emt 0:00:17] [#]} Nxd5 $146 {[%emt 0:00:05]} ({Predecessor:} 11... exd5 12. Bb2 h6 13. Rc1 Be6 14. Nd4 Nxd4 15. Qxd4 Ne8 16. Rfd1 Bf6 17. Qd2 Qd7 {½-½ (52) Yanikoglu,O (1635)-Celebi,O (1834) Antalya 2020}) 12. Nxd5 {[%emt 0:00:05]} exd5 {[%emt 0:00:21]} 13. Bb2 {[%emt 0:00:01]} Be6 {[%emt 0:00:05]} 14. Rc1 {[%emt 0:00:10]} Bf6 {[%emt 0:00:02]} 15. Qd2 {[%emt 0:00:14]} Qe7 {[%emt 0:00:16]} 16. Rfd1 {[%emt 0:00:04]} Rfd8 {[%emt 0:00:01]} 17. Nd4 {[%emt 0:00:08]} Nxd4 {[%emt 0:00:07]} 18. Bxd4 {[%emt 0:00:02]} Rac8 {[%emt 0:00:07]} 19. Bf3 {[%emt 0:00:03]} h6 {[%emt 0:00:16]} 20. Bb6 {[%emt 0:00:10]} Rxc1 {[%emt 0:00:07]} 21. Rxc1 {[%emt 0:00:07]} Rd7 {[%emt 0:00:10][%mdl 8192]} (21... Ra8 $14) 22. h3 $2 {[%emt 0:00:08]} ({Only move:} 22. Rc8+ $18 Kh7 23. Bc5) 22... Qd6 {[%emt 0:00:17]} (22... Be5 $14) 23. Bc5 {[%emt 0:00:08]} ({White should try} 23. Rc8+ $16 Kh7 24. Qc2+ (24. Bc5 Qe5 $14) 24... g6 25. Bc5) 23... Qe5 $14 {[%emt 0:00:06]} 24. Bd4 {[%emt 0:00:05]} Qg5 {[%emt 0:00:05]} 25. Kh1 {[%emt 0:00:18]} (25. Rc8+ {with more complications.} Kh7 26. Kf1 Qg6 27. Ke2) 25... Rd8 {[%emt 0:00:06]} (25... Qh4 $14) 26. Bb6 {[%emt 0:00:05]} (26. Rc7 $16) 26... Re8 {[%emt 0:00:11]} 27. Qd3 {[%emt 0:00:28]} Qh4 {[%emt 0:00:12]} 28. Qe2 {[%emt 0:00:21]} (28. Bxd5 Bxd5 29. Qxd5 Qxf2 $11) 28... Be5 {[%emt 0:00:05][%cal Oe6h3]} 29. Bg4 $2 {[%emt 0:00:35]} (29. Kg1 $14 {stays ahead.}) 29... Bxg4 $17 {[%emt 0:00:01]} 30. Qxg4 {[%emt 0:00:01]} Qxf2 {[%emt 0:00:10]} 31. Qd7 {[%emt 0:00:03] [#]} Rf8 {[%emt 0:00:05]} (31... Re6 $1 $17 {[%cal Re6c6]} 32. Bd4 Bxd4 33. exd4 Qxd4) 32. Bc5 {[%emt 0:00:02]} Qd2 {[%emt 0:00:07][%cal Rd2c1]} 33. Rg1 {[%emt 0:00:02]} Rb8 $40 {[%emt 0:00:04][%mdl 128] Black is up to no good.} 34. Qe7 {[%emt 0:00:04]} Bg3 {[%emt 0:00:07]} 35. Bd6 {[%emt 0:00:03]} (35. Rf1 $11 f6 36. Ba7 (36. Bd6 Bxd6 37. Qxd6 Re8 $17)) 35... Bxd6 {[%emt 0:00:02]} 36. Qxd6 {[%emt 0:00:01][%mdl 4096] Endgame KQR-KQR} Rf8 {[%emt 0:00:01]} 37. e4 {[%emt 0:00:02]} Qd3 {[%emt 0:00:06]} (37... d4 $17 {Strongly threatening ...Rc8.} 38. Rf1 Qe2) 38. exd5 $11 {[%emt 0:00:02]} Qxa3 {[%emt 0:00:01]} 39. Qc5 {[%emt 0:00:02] [#] Against a5} (39. Qe7 $11 {keeps the balance.}) 39... Qd3 $1 $17 {[%emt 0:00:03]} 40. d6 {[%emt 0:00:03]} Rd8 {[%emt 0:00:00] And now ...b5 would win.} 41. Qc7 {[%emt 0:00:03]} (41. Re1 $17 {was the only defense.}) 41... Qxd6 $19 {[%emt 0:00:02]} 42. Qxb7 {[%emt 0:00:01]} Rb8 {[%emt 0:00:03]} 43. Qa7 {[%emt 0:00:03]} (43. Qe4 $142) 43... Rxb4 {[%emt 0:00:03]} 44. Re1 {[%emt 0:00:01]} Kh7 $2 {[%emt 0:00:06]} (44... Qc6 $19 {aiming for ...Rb2.} 45. Rf1 f6) 45. Qe3 $2 {[%emt 0:00:03]} (45. Qxf7 $17 Qd3 46. Qa2 (46. Re8 {gets mated.} Rb1+ 47. Kh2 Qd6+)) 45... Rb8 {[%emt 0:00:02]} 46. Qd3+ $2 {[%emt 0:00:01]} (46. Qe4+ $19 Kg8 47. Qa4) 46... Qxd3 {[%emt 0:00:01] What a fight!  Weighted Error Value: White=0.69/Black=0.39} 0-1